[Event "Titled Tuesday Blitz August 08 Early 2023"]
[White "Heinemann, Josefine"]
[Black "Avazkhonov, Alikhon"]
[WhiteFideId "12900460"]
[BlackFideId "14208504"]
[WhiteElo "2591"]
[BlackElo "2413"]
[Result "1-0"]
[Round "3"]
[TimeControl "180+1"]
[Date "2023.08.08"]
[WhiteClock "0:01:00"]
[BlackClock "0:00:56"]
[Board "147"]

1. e4 {[%clk 0:03:00]}  c5 {[%clk 0:02:57]} 2. c3 {[%clk 0:03:00]}  d5 {[%clk 0:02:56]} 3. exd5 {[%clk 0:02:55]}  Qxd5 {[%clk 0:02:57]} 4. d4 {[%clk 0:02:55]}  Nf6 {[%clk 0:02:58]} 5. Nf3 {[%clk 0:02:55]}  Bg4 {[%clk 0:02:58]} 6. dxc5 {[%clk 0:02:54]}  Qxc5 {[%clk 0:02:57]} 7. Be3 {[%clk 0:02:52]}  Qc7 {[%clk 0:02:56]} 8. h3 {[%clk 0:02:52]}  Bd7 {[%clk 0:02:54]} 9. Na3 {[%clk 0:02:44]}  Nc6 {[%clk 0:02:48]} 10. Nb5 {[%clk 0:02:43]}  Qa5 {[%clk 0:02:46]} 11. Bc4 {[%clk 0:02:33]}  a6 {[%clk 0:02:44]} 12. Nbd4 {[%clk 0:02:24]}  e6 {[%clk 0:02:44]} 13. O-O {[%clk 0:02:23]}  Be7 {[%clk 0:02:41]} 14. Nb3 {[%clk 0:02:13]}  Qc7 {[%clk 0:02:41]} 15. Qe2 {[%clk 0:02:12]}  O-O {[%clk 0:02:40]} 16. a4 {[%clk 0:02:11]}  b6 {[%clk 0:02:35]} 17. Bxa6 {[%clk 0:02:05]}  Nd5 {[%clk 0:02:31]} 18. Bb5 {[%clk 0:02:02]}  Nxe3 {[%clk 0:02:26]} 19. Qxe3 {[%clk 0:02:02]}  Rfd8 {[%clk 0:02:16]} 20. Rfd1 {[%clk 0:01:58]}  Be8 {[%clk 0:02:10]} 21. Qe2 {[%clk 0:01:41]}  h6 {[%clk 0:01:48]} 22. Nbd4 {[%clk 0:01:40]}  Nxd4 {[%clk 0:01:47]} 23. Nxd4 {[%clk 0:01:41]}  Bxb5 {[%clk 0:01:47]} 24. axb5 {[%clk 0:01:40]}  Qb7 {[%clk 0:01:47]} 25. Nc6 {[%clk 0:01:39]}  Rxd1+ {[%clk 0:01:44]} 26. Rxd1 {[%clk 0:01:39]}  Bc5 {[%clk 0:01:44]} 27. b4 {[%clk 0:01:35]}  Bf8 {[%clk 0:01:43]} 28. g3 {[%clk 0:01:24]}  Qc7 {[%clk 0:01:42]} 29. Qd2 {[%clk 0:01:17]}  Ra3 {[%clk 0:01:41]} 30. Qd8 {[%clk 0:01:14]}  Qxd8 {[%clk 0:01:05]} 31. Rxd8 {[%clk 0:01:13]}  f6 {[%clk 0:01:05]} 32. c4 {[%clk 0:01:01]}  Rd3 {[%clk 0:00:56]} 33. Rxd3 {[%clk 0:01:00]} 1-0


[Site "https://www.chess.com"]

[Event "Titled Tuesday Blitz August 08 Early 2023"]
[White "Matyukov, Petr"]
[Black "Donskov, Anatoly"]
[WhiteFideId "4103688"]
[BlackFideId "24143413"]
[WhiteElo "2584"]
[BlackElo "2402"]
[Result "1-0"]
[Round "3"]
[TimeControl "180+1"]
[Date "2023.08.08"]
[WhiteClock "0:00:17"]
[BlackClock "0:00:00"]
[Board "152"]

1. d4 {[%clk 0:03:00]}  d5 {[%clk 0:02:58]} 2. c4 {[%clk 0:02:59]}  dxc4 {[%clk 0:02:58]} 3. Nf3 {[%clk 0:02:58]}  Nf6 {[%clk 0:02:58]} 4. e3 {[%clk 0:02:58]}  e6 {[%clk 0:02:56]} 5. Bxc4 {[%clk 0:02:59]}  c5 {[%clk 0:02:56]} 6. O-O {[%clk 0:02:59]}  a6 {[%clk 0:02:57]} 7. Bb3 {[%clk 0:02:59]}  b5 {[%clk 0:02:55]} 8. a4 {[%clk 0:02:57]}  c4 {[%clk 0:02:49]} 9. Bc2 {[%clk 0:02:53]}  Bb7 {[%clk 0:02:49]} 10. Qe2 {[%clk 0:02:48]}  Nc6 {[%clk 0:02:40]} 11. Rd1 {[%clk 0:02:47]}  Nb4 {[%clk 0:02:30]} 12. Na3 {[%clk 0:02:21]}  Be7 {[%clk 0:02:17]} 13. Bb1 {[%clk 0:02:12]}  O-O {[%clk 0:02:15]} 14. e4 {[%clk 0:02:11]}  Nd3 {[%clk 0:01:50]} 15. e5 {[%clk 0:02:01]}  Nxc1 {[%clk 0:01:39]} 16. Rxc1 {[%clk 0:02:01]}  Nd5 {[%clk 0:01:38]} 17. Be4 {[%clk 0:01:39]}  Qb6 {[%clk 0:01:27]} 18. Qc2 {[%clk 0:01:17]}  g6 {[%clk 0:01:20]} 19. h4 {[%clk 0:01:16]}  Rfd8 {[%clk 0:01:04]} 20. h5 {[%clk 0:01:13]}  Nb4 {[%clk 0:00:51]} 21. Qe2 {[%clk 0:01:12]}  Bxe4 {[%clk 0:00:48]} 22. Qxe4 {[%clk 0:01:13]}  Nd3 {[%clk 0:00:48]} 23. Rc2 {[%clk 0:01:07]}  Rac8 {[%clk 0:00:27]} 24. Rd1 {[%clk 0:00:49]}  Qa5 {[%clk 0:00:15]} 25. axb5 {[%clk 0:00:46]}  axb5 {[%clk 0:00:16]} 26. Qg4 {[%clk 0:00:35]}  Bxa3 {[%clk 0:00:14]} 27. bxa3 {[%clk 0:00:34]}  Qxa3 {[%clk 0:00:14]} 28. h6 {[%clk 0:00:32]}  b4 {[%clk 0:00:12]} 29. Qg5 {[%clk 0:00:32]}  b3 {[%clk 0:00:11]} 30. Qf6 {[%clk 0:00:32]}  Qf8 {[%clk 0:00:12]} 31. Re2 {[%clk 0:00:20]}  Qxh6 {[%clk 0:00:10]} 32. Re4 {[%clk 0:00:20]}  b2 {[%clk 0:00:07]} 33. Rh4 {[%clk 0:00:19]}  Qg7 {[%clk 0:00:05]} 34. Qg5 {[%clk 0:00:18]}  Nc1 {[%clk 0:00:01]} 35. Rxc1 {[%clk 0:00:17]}  bxc1=Q+ {[%clk 0:00:02]} 36. Qxc1 {[%clk 0:00:17]}  c3 {[%clk 0:00:00]} 37. Qc2 {[%clk 0:00:17]} 1-0


[Site "https://www.chess.com"]

[Event "Titled Tuesday Blitz August 08 Early 2023"]
[White "Rosenberg, Evan S"]
[Black "Moskvin, Anatoly"]
[WhiteFideId "2019299"]
[BlackFideId "24199990"]
[WhiteElo "2402"]
[BlackElo "2583"]
[Result "1-0"]
[Round "3"]
[TimeControl "180+1"]
[Date "2023.08.08"]
[WhiteClock "0:00:04"]
[BlackClock "0:00:05"]
[Board "153"]

1. d4 {[%clk 0:03:00]}  Nf6 {[%clk 0:02:59]} 2. Nf3 {[%clk 0:03:01]}  c5 {[%clk 0:03:00]} 3. d5 {[%clk 0:03:01]}  b5 {[%clk 0:02:59]} 4. e4 {[%clk 0:03:01]}  Nxe4 {[%clk 0:02:58]} 5. Bd3 {[%clk 0:03:01]}  Nf6 {[%clk 0:02:58]} 6. Bxb5 {[%clk 0:03:01]}  Ba6 {[%clk 0:02:42]} 7. a4 {[%clk 0:02:51]}  g6 {[%clk 0:02:40]} 8. O-O {[%clk 0:02:50]}  Bg7 {[%clk 0:02:40]} 9. c4 {[%clk 0:02:39]}  O-O {[%clk 0:02:36]} 10. Nc3 {[%clk 0:02:39]}  d6 {[%clk 0:02:28]} 11. Re1 {[%clk 0:02:34]}  Bb7 {[%clk 0:02:26]} 12. a5 {[%clk 0:02:32]}  Ba6 {[%clk 0:02:17]} 13. Bg5 {[%clk 0:02:22]}  h6 {[%clk 0:02:17]} 14. Bf4 {[%clk 0:02:14]}  Bxb5 {[%clk 0:01:48]} 15. cxb5 {[%clk 0:01:53]}  Nbd7 {[%clk 0:01:48]} 16. Nd2 {[%clk 0:01:47]}  Nh5 {[%clk 0:01:44]} 17. Bg3 {[%clk 0:01:32]}  Rb8 {[%clk 0:01:45]} 18. Qe2 {[%clk 0:01:23]}  Re8 {[%clk 0:01:38]} 19. Nc4 {[%clk 0:01:21]}  Nxg3 {[%clk 0:01:28]} 20. hxg3 {[%clk 0:01:21]}  Ne5 {[%clk 0:01:28]} 21. Nxe5 {[%clk 0:00:58]}  Bxe5 {[%clk 0:01:29]} 22. Ra4 {[%clk 0:00:43]}  Qd7 {[%clk 0:01:25]} 23. Rh4 {[%clk 0:00:40]}  h5 {[%clk 0:01:21]} 24. Re4 {[%clk 0:00:29]}  f5 {[%clk 0:01:03]} 25. Rxe5 {[%clk 0:00:29]}  dxe5 {[%clk 0:01:03]} 26. Qxe5 {[%clk 0:00:30]}  Qd6 {[%clk 0:01:00]} 27. Qe3 {[%clk 0:00:27]}  Kf7 {[%clk 0:00:58]} 28. Qh6 {[%clk 0:00:20]}  Rh8 {[%clk 0:00:43]} 29. Qg5 {[%clk 0:00:20]}  Qf6 {[%clk 0:00:41]} 30. Qf4 {[%clk 0:00:19]}  Rb7 {[%clk 0:00:32]} 31. Re6 {[%clk 0:00:18]}  Qd4 {[%clk 0:00:32]} 32. Qg5 {[%clk 0:00:17]}  Rg8 {[%clk 0:00:26]} 33. Qh6 {[%clk 0:00:17]}  Qg7 {[%clk 0:00:19]} 34. Qf4 {[%clk 0:00:15]}  Qd4 {[%clk 0:00:19]} 35. Qh6 {[%clk 0:00:13]}  Rd7 {[%clk 0:00:18]} 36. Qg5 {[%clk 0:00:10]}  Rh8 {[%clk 0:00:11]} 37. Qxg6+ {[%clk 0:00:10]}  Kf8 {[%clk 0:00:11]} 38. Qxf5+ {[%clk 0:00:10]}  Ke8 {[%clk 0:00:12]} 39. Qg6+ {[%clk 0:00:08]}  Kd8 {[%clk 0:00:12]} 40. Qf5 {[%clk 0:00:06]}  h4 {[%clk 0:00:11]} 41. gxh4 {[%clk 0:00:04]}  Qxh4 {[%clk 0:00:12]} 42. Kf1 {[%clk 0:00:04]}  Qh1+ {[%clk 0:00:12]} 43. Ke2 {[%clk 0:00:05]}  Qxg2 {[%clk 0:00:13]} 44. Ne4 {[%clk 0:00:04]}  Rh1 {[%clk 0:00:09]} 45. Qf8+ {[%clk 0:00:03]}  Kc7 {[%clk 0:00:05]} 46. Rc6+ {[%clk 0:00:04]} 1-0


[Site "https://www.chess.com"]

[Event "Titled Tuesday Blitz August 08 Early 2023"]
[White "Luong Phuong Hanh"]
[Black "Eynullayev, Altay"]
[WhiteFideId "12401013"]
[BlackFideId "13413562"]
[WhiteElo "2391"]
[BlackElo "2575"]
[Result "0-1"]
[Round "3"]
[TimeControl "180+1"]
[Date "2023.08.08"]
[WhiteClock "0:00:12"]
[BlackClock "0:00:16"]
[Board "156"]

1. d4 {[%clk 0:02:23]}  Nf6 {[%clk 0:02:59]} 2. Nf3 {[%clk 0:02:23]}  g6 {[%clk 0:02:59]} 3. g3 {[%clk 0:02:22]}  Bg7 {[%clk 0:02:55]} 4. Bg2 {[%clk 0:02:17]}  O-O {[%clk 0:02:56]} 5. O-O {[%clk 0:02:03]}  d5 {[%clk 0:02:56]} 6. c4 {[%clk 0:02:03]}  dxc4 {[%clk 0:02:57]} 7. Na3 {[%clk 0:02:02]}  c3 {[%clk 0:02:58]} 8. bxc3 {[%clk 0:02:03]}  c5 {[%clk 0:02:58]} 9. Qb3 {[%clk 0:02:02]}  Nc6 {[%clk 0:02:53]} 10. Rd1 {[%clk 0:02:01]}  Qa5 {[%clk 0:01:34]} 11. Nc4 {[%clk 0:01:40]}  Qa6 {[%clk 0:01:33]} 12. d5 {[%clk 0:01:35]}  Na5 {[%clk 0:01:34]} 13. Nxa5 {[%clk 0:01:35]}  Qxa5 {[%clk 0:01:35]} 14. Bb2 {[%clk 0:01:33]}  Bf5 {[%clk 0:01:29]} 15. c4 {[%clk 0:01:32]}  Be4 {[%clk 0:01:26]} 16. Qe3 {[%clk 0:01:31]}  Rfe8 {[%clk 0:01:23]} 17. Bxf6 {[%clk 0:01:28]}  exf6 {[%clk 0:01:22]} 18. Qb3 {[%clk 0:01:25]}  Qc7 {[%clk 0:01:19]} 19. Re1 {[%clk 0:01:19]}  f5 {[%clk 0:01:18]} 20. Rad1 {[%clk 0:01:17]}  b6 {[%clk 0:01:08]} 21. Nh4 {[%clk 0:01:17]}  Bxg2 {[%clk 0:01:06]} 22. Nxg2 {[%clk 0:01:18]}  Qd6 {[%clk 0:01:05]} 23. Nf4 {[%clk 0:01:16]}  h5 {[%clk 0:01:02]} 24. Qf3 {[%clk 0:01:15]}  Be5 {[%clk 0:00:54]} 25. Nd3 {[%clk 0:01:14]}  Bc3 {[%clk 0:00:53]} 26. Rf1 {[%clk 0:01:13]}  Bf6 {[%clk 0:00:46]} 27. Nf4 {[%clk 0:00:55]}  Re4 {[%clk 0:00:47]} 28. Nxh5 {[%clk 0:00:55]}  gxh5 {[%clk 0:00:46]} 29. Qxh5 {[%clk 0:00:54]}  Rxc4 {[%clk 0:00:29]} 30. Qxf5 {[%clk 0:00:53]}  Re8 {[%clk 0:00:27]} 31. e3 {[%clk 0:00:50]}  b5 {[%clk 0:00:23]} 32. Rc1 {[%clk 0:00:43]}  Rxc1 {[%clk 0:00:22]} 33. Rxc1 {[%clk 0:00:43]}  c4 {[%clk 0:00:22]} 34. h4 {[%clk 0:00:38]}  c3 {[%clk 0:00:20]} 35. h5 {[%clk 0:00:36]}  Re5 {[%clk 0:00:20]} 36. Qg4+ {[%clk 0:00:35]}  Rg5 {[%clk 0:00:20]} 37. Qe2 {[%clk 0:00:35]}  Qxd5 {[%clk 0:00:19]} 38. e4 {[%clk 0:00:32]}  Qc4 {[%clk 0:00:19]} 39. Qf3 {[%clk 0:00:29]}  Qe6 {[%clk 0:00:16]} 40. Qe3 {[%clk 0:00:26]}  b4 {[%clk 0:00:16]} 41. h6 {[%clk 0:00:24]}  Rh5 {[%clk 0:00:16]} 42. Qf3 {[%clk 0:00:20]}  Qh3 {[%clk 0:00:15]} 43. Rc2 {[%clk 0:00:16]}  Qh2+ {[%clk 0:00:15]} 44. Kf1 {[%clk 0:00:17]}  Qh1+ {[%clk 0:00:16]} 45. Ke2 {[%clk 0:00:17]}  Qxf3+ {[%clk 0:00:16]} 46. Kxf3 {[%clk 0:00:18]}  Rxh6 {[%clk 0:00:16]} 47. Ke3 {[%clk 0:00:18]}  Rh2 {[%clk 0:00:16]} 48. g4 {[%clk 0:00:17]}  Rg2 {[%clk 0:00:16]} 49. Kf3 {[%clk 0:00:17]}  Rg1 {[%clk 0:00:16]} 50. Kf4 {[%clk 0:00:17]}  Rb1 {[%clk 0:00:16]} 51. g5 {[%clk 0:00:16]}  Bd4 {[%clk 0:00:16]} 52. f3 {[%clk 0:00:15]}  Rb2 {[%clk 0:00:16]} 53. Rc1 {[%clk 0:00:15]}  c2 {[%clk 0:00:17]} 54. Kf5 {[%clk 0:00:14]}  a5 {[%clk 0:00:17]} 55. f4 {[%clk 0:00:14]}  Rxa2 {[%clk 0:00:17]} 56. g6 {[%clk 0:00:14]}  fxg6+ {[%clk 0:00:16]} 57. Kxg6 {[%clk 0:00:15]}  b3 {[%clk 0:00:17]} 58. Kf5 {[%clk 0:00:15]}  b2 {[%clk 0:00:17]} 59. Rg1+ {[%clk 0:00:12]}  Kf7 {[%clk 0:00:16]} 0-1


[Site "https://www.chess.com"]

[Event "Titled Tuesday Blitz August 08 Early 2023"]
[White "vishwa_vijeta"]
[Black "Nosacheva, Mariya"]
[BlackFideId "34111422"]
[WhiteElo "2573"]
[BlackElo "2388"]
[Result "1-0"]
[Round "3"]
[TimeControl "180+1"]
[Date "2023.08.08"]
[WhiteClock "0:02:43"]
[BlackClock "0:02:12"]
[Board "157"]

1. e4 {[%clk 0:03:00]}  c5 {[%clk 0:02:58]} 2. Nf3 {[%clk 0:03:00]}  d6 {[%clk 0:02:58]} 3. d4 {[%clk 0:03:01]}  cxd4 {[%clk 0:02:59]} 4. Nxd4 {[%clk 0:03:02]}  Nf6 {[%clk 0:02:59]} 5. Nc3 {[%clk 0:03:02]}  a6 {[%clk 0:03:00]} 6. Bg5 {[%clk 0:03:02]}  Nbd7 {[%clk 0:02:59]} 7. f4 {[%clk 0:03:01]}  Qc7 {[%clk 0:02:55]} 8. Qf3 {[%clk 0:02:59]}  h6 {[%clk 0:02:55]} 9. Bh4 {[%clk 0:02:57]}  g5 {[%clk 0:02:51]} 10. fxg5 {[%clk 0:02:53]}  hxg5 {[%clk 0:02:48]} 11. Bxg5 {[%clk 0:02:54]}  Qc5 {[%clk 0:02:31]} 12. Be3 {[%clk 0:02:52]}  Ne5 {[%clk 0:02:27]} 13. Qe2 {[%clk 0:02:52]}  Bg4 {[%clk 0:02:24]} 14. Qd2 {[%clk 0:02:44]}  Qc6 {[%clk 0:02:12]} 15. Nxc6 {[%clk 0:02:43]} 1-0


[Site "https://www.chess.com"]

[Event "Titled Tuesday Blitz August 08 Early 2023"]
[White "Qiao, Cindy"]
[Black "Do Nascimento,Christian Almeida"]
[WhiteFideId "2620243"]
[BlackFideId "2143801"]
[WhiteElo "2387"]
[BlackElo "2568"]
[Result "1-0"]
[Round "3"]
[TimeControl "180+1"]
[Date "2023.08.08"]
[WhiteClock "0:00:18"]
[BlackClock "0:00:00"]
[Board "158"]

1. d4 {[%clk 0:03:00]}  Nf6 {[%clk 0:02:54]} 2. Bf4 {[%clk 0:03:00]}  d5 {[%clk 0:02:54]} 3. e3 {[%clk 0:03:01]}  e6 {[%clk 0:02:54]} 4. Nf3 {[%clk 0:03:01]}  Bd6 {[%clk 0:02:54]} 5. Ne5 {[%clk 0:03:01]}  O-O {[%clk 0:02:54]} 6. Bd3 {[%clk 0:03:01]}  h6 {[%clk 0:02:52]} 7. h4 {[%clk 0:03:00]}  c5 {[%clk 0:02:52]} 8. c3 {[%clk 0:03:00]}  Nc6 {[%clk 0:02:52]} 9. g4 {[%clk 0:02:59]}  Qc7 {[%clk 0:02:51]} 10. g5 {[%clk 0:02:56]}  hxg5 {[%clk 0:02:45]} 11. hxg5 {[%clk 0:02:56]}  Nxe5 {[%clk 0:02:18]} 12. gxf6 {[%clk 0:02:17]}  Nxd3+ {[%clk 0:02:17]} 13. Qxd3 {[%clk 0:02:16]}  g6 {[%clk 0:02:18]} 14. Bh6 {[%clk 0:02:10]}  Bh2 {[%clk 0:01:32]} 15. f4 {[%clk 0:02:04]}  Bg3+ {[%clk 0:01:25]} 16. Kd2 {[%clk 0:01:49]}  Bxf4 {[%clk 0:00:31]} 17. Bxf4 {[%clk 0:01:27]}  e5 {[%clk 0:00:31]} 18. Bh6 {[%clk 0:01:06]}  Bg4 {[%clk 0:00:21]} 19. Na3 {[%clk 0:00:41]}  cxd4 {[%clk 0:00:19]} 20. exd4 {[%clk 0:00:38]}  e4 {[%clk 0:00:16]} 21. Qe3 {[%clk 0:00:34]}  Rfe8 {[%clk 0:00:11]} 22. Bg7 {[%clk 0:00:33]}  Bh5 {[%clk 0:00:11]} 23. Rxh5 {[%clk 0:00:33]}  gxh5 {[%clk 0:00:11]} 24. Rg1 {[%clk 0:00:30]}  Qh2+ {[%clk 0:00:11]} 25. Kc1 {[%clk 0:00:28]}  Re6 {[%clk 0:00:07]} 26. Bh6+ {[%clk 0:00:22]}  Kh7 {[%clk 0:00:06]} 27. Bf4 {[%clk 0:00:21]}  Qh4 {[%clk 0:00:01]} 28. Rg7+ {[%clk 0:00:19]}  Kh8 {[%clk 0:00:00]} 29. Be5 {[%clk 0:00:18]} 1-0


[Site "https://www.chess.com"]

[Event "Titled Tuesday Blitz August 08 Early 2023"]
[White "Vifleemskaia, Svetlana"]
[Black "Manukyan, Sargis A."]
[WhiteFideId "4129490"]
[BlackFideId "13303970"]
[WhiteElo "2385"]
[BlackElo "2567"]
[Result "0-1"]
[Round "3"]
[TimeControl "180+1"]
[Date "2023.08.08"]
[WhiteClock "0:00:00"]
[BlackClock "0:00:17"]
[Board "159"]

1. d4 {[%clk 0:02:59]}  d5 {[%clk 0:02:59]} 2. c4 {[%clk 0:02:59]}  e6 {[%clk 0:02:59]} 3. Nc3 {[%clk 0:02:58]}  Nf6 {[%clk 0:03:00]} 4. cxd5 {[%clk 0:02:57]}  exd5 {[%clk 0:02:58]} 5. Bg5 {[%clk 0:02:56]}  c6 {[%clk 0:02:59]} 6. e3 {[%clk 0:02:56]}  Nbd7 {[%clk 0:02:59]} 7. Bd3 {[%clk 0:02:57]}  Be7 {[%clk 0:02:59]} 8. Qc2 {[%clk 0:02:57]}  O-O {[%clk 0:02:59]} 9. Nge2 {[%clk 0:02:56]}  Re8 {[%clk 0:03:00]} 10. f3 {[%clk 0:02:55]}  Nf8 {[%clk 0:03:00]} 11. Bh4 {[%clk 0:02:54]}  Ng6 {[%clk 0:03:00]} 12. Bf2 {[%clk 0:02:54]}  c5 {[%clk 0:02:59]} 13. Qd2 {[%clk 0:02:51]}  c4 {[%clk 0:02:56]} 14. Bc2 {[%clk 0:02:50]}  a6 {[%clk 0:02:57]} 15. a4 {[%clk 0:02:50]}  Bd7 {[%clk 0:02:57]} 16. a5 {[%clk 0:02:46]}  Bb4 {[%clk 0:02:56]} 17. O-O {[%clk 0:02:40]}  Bxa5 {[%clk 0:02:56]} 18. Kh1 {[%clk 0:02:25]}  b5 {[%clk 0:02:56]} 19. Qd1 {[%clk 0:01:49]}  b4 {[%clk 0:02:55]} 20. Na4 {[%clk 0:01:48]}  b3 {[%clk 0:02:48]} 21. Bb1 {[%clk 0:01:46]}  Bxa4 {[%clk 0:02:43]} 22. Rxa4 {[%clk 0:01:45]}  Bc7 {[%clk 0:02:44]} 23. Nc3 {[%clk 0:01:33]}  Qd6 {[%clk 0:02:33]} 24. g3 {[%clk 0:01:24]}  Qc6 {[%clk 0:02:28]} 25. Ra1 {[%clk 0:01:19]}  h5 {[%clk 0:02:23]} 26. Bf5 {[%clk 0:01:19]}  h4 {[%clk 0:02:23]} 27. Bh3 {[%clk 0:01:18]}  Nh5 {[%clk 0:02:16]} 28. g4 {[%clk 0:01:04]}  Qd6 {[%clk 0:02:12]} 29. f4 {[%clk 0:00:55]}  Nhxf4 {[%clk 0:02:07]} 30. exf4 {[%clk 0:00:49]}  Nxf4 {[%clk 0:02:07]} 31. Qf3 {[%clk 0:00:48]}  Ne2 {[%clk 0:01:41]} 32. Bg3 {[%clk 0:00:34]}  Nxg3+ {[%clk 0:01:07]} 33. hxg3 {[%clk 0:00:30]}  f6 {[%clk 0:01:07]} 34. g5 {[%clk 0:00:17]}  fxg5 {[%clk 0:00:45]} 35. Qf7+ {[%clk 0:00:11]}  Kh8 {[%clk 0:00:46]} 36. Qh5+ {[%clk 0:00:09]}  Qh6 {[%clk 0:00:46]} 37. Qxh6+ {[%clk 0:00:08]}  gxh6 {[%clk 0:00:47]} 38. gxh4 {[%clk 0:00:09]}  Re3 {[%clk 0:00:46]} 39. Kg2 {[%clk 0:00:07]}  Rg3+ {[%clk 0:00:46]} 40. Kf2 {[%clk 0:00:03]}  Rf8+ {[%clk 0:00:41]} 41. Ke2 {[%clk 0:00:03]}  Re8+ {[%clk 0:00:41]} 42. Kd2 {[%clk 0:00:02]}  Rxh3 {[%clk 0:00:40]} 43. Nxd5 {[%clk 0:00:02]}  Bg3 {[%clk 0:00:27]} 44. Rxa6 {[%clk 0:00:02]}  Rxh4 {[%clk 0:00:24]} 45. Nf6 {[%clk 0:00:00]}  Re7 {[%clk 0:00:17]} 0-1


[Site "https://www.chess.com"]

[Event "Titled Tuesday Blitz August 08 Early 2023"]
[White "Unat, Can Haktan"]
[Black "Legenia, Artem"]
[WhiteFideId "6398073"]
[BlackFideId "14136945"]
[WhiteElo "2567"]
[BlackElo "2382"]
[Result "0-1"]
[Round "3"]
[TimeControl "180+1"]
[Date "2023.08.08"]
[WhiteClock "0:01:23"]
[BlackClock "0:01:09"]
[Board "160"]

1. Nf3 {[%clk 0:02:56]}  g6 {[%clk 0:02:54]} 2. g3 {[%clk 0:02:54]}  Bg7 {[%clk 0:02:43]} 3. d4 {[%clk 0:02:54]}  Nf6 {[%clk 0:02:38]} 4. Bg2 {[%clk 0:02:54]}  O-O {[%clk 0:02:37]} 5. O-O {[%clk 0:02:55]}  d6 {[%clk 0:02:34]} 6. c4 {[%clk 0:02:55]}  c5 {[%clk 0:02:33]} 7. Nc3 {[%clk 0:02:56]}  cxd4 {[%clk 0:02:33]} 8. Nxd4 {[%clk 0:02:57]}  Nc6 {[%clk 0:02:28]} 9. Nxc6 {[%clk 0:02:58]}  bxc6 {[%clk 0:02:28]} 10. Bxc6 {[%clk 0:02:57]}  Rb8 {[%clk 0:02:28]} 11. Nd5 {[%clk 0:02:57]}  Nxd5 {[%clk 0:02:27]} 12. Bxd5 {[%clk 0:02:55]}  Bf5 {[%clk 0:02:24]} 13. e4 {[%clk 0:02:54]}  Bh3 {[%clk 0:02:24]} 14. Re1 {[%clk 0:02:54]}  Bxb2 {[%clk 0:02:22]} 15. Bxb2 {[%clk 0:02:50]}  Rxb2 {[%clk 0:02:22]} 16. Qa4 {[%clk 0:02:51]}  Qb6 {[%clk 0:02:20]} 17. Rf1 {[%clk 0:02:43]}  Bxf1 {[%clk 0:02:11]} 18. Rxf1 {[%clk 0:02:44]}  e6 {[%clk 0:02:07]} 19. Bc6 {[%clk 0:02:42]}  Rb4 {[%clk 0:01:56]} 20. Qa3 {[%clk 0:02:40]}  Rc8 {[%clk 0:01:53]} 21. Bb5 {[%clk 0:02:38]}  a5 {[%clk 0:01:51]} 22. Qd3 {[%clk 0:02:36]}  Qc5 {[%clk 0:01:44]} 23. h4 {[%clk 0:02:32]}  d5 {[%clk 0:01:38]} 24. exd5 {[%clk 0:02:24]}  exd5 {[%clk 0:01:38]} 25. Ba6 {[%clk 0:02:19]}  Ra8 {[%clk 0:01:35]} 26. cxd5 {[%clk 0:02:18]}  Rd4 {[%clk 0:01:31]} 27. Qb5 {[%clk 0:02:17]}  Rxd5 {[%clk 0:01:27]} 28. Qb7 {[%clk 0:02:14]}  Rad8 {[%clk 0:01:23]} 29. Be2 {[%clk 0:02:06]}  Rd2 {[%clk 0:01:20]} 30. Bf3 {[%clk 0:01:55]}  Rxa2 {[%clk 0:01:17]} 31. h5 {[%clk 0:01:51]}  Kg7 {[%clk 0:01:14]} 32. hxg6 {[%clk 0:01:49]}  hxg6 {[%clk 0:01:14]} 33. Be4 {[%clk 0:01:40]}  Rdd2 {[%clk 0:01:12]} 34. Bd5 {[%clk 0:01:23]}  Qxd5 {[%clk 0:01:09]} 0-1


[Site "https://www.chess.com"]

[Event "Titled Tuesday Blitz August 08 Early 2023"]
[White "Mogirzan, Matei-Valeriu"]
[Black "Krzywda, Andrzej"]
[WhiteFideId "1257455"]
[BlackFideId "1114565"]
[WhiteElo "2561"]
[BlackElo "2367"]
[Result "1-0"]
[Round "3"]
[TimeControl "180+1"]
[Date "2023.08.08"]
[WhiteClock "0:00:22"]
[BlackClock "0:00:12"]
[Board "165"]

1. e4 {[%clk 0:03:00]}  e5 {[%clk 0:03:00]} 2. Nf3 {[%clk 0:02:58]}  Nf6 {[%clk 0:03:00]} 3. Nc3 {[%clk 0:02:57]}  Bb4 {[%clk 0:03:00]} 4. Nxe5 {[%clk 0:02:56]}  O-O {[%clk 0:03:00]} 5. Be2 {[%clk 0:02:54]}  Re8 {[%clk 0:02:57]} 6. O-O {[%clk 0:02:50]}  Rxe5 {[%clk 0:02:56]} 7. d4 {[%clk 0:02:46]}  Re8 {[%clk 0:02:37]} 8. e5 {[%clk 0:02:44]}  Bxc3 {[%clk 0:02:37]} 9. bxc3 {[%clk 0:02:37]}  Ne4 {[%clk 0:02:17]} 10. Bd3 {[%clk 0:02:33]}  d5 {[%clk 0:02:15]} 11. f3 {[%clk 0:02:23]}  Nxc3 {[%clk 0:02:01]} 12. Qe1 {[%clk 0:02:11]}  Na4 {[%clk 0:02:01]} 13. f4 {[%clk 0:02:06]}  c5 {[%clk 0:01:49]} 14. c3 {[%clk 0:01:54]}  f5 {[%clk 0:01:38]} 15. Qd1 {[%clk 0:01:37]}  Nb6 {[%clk 0:01:33]} 16. g4 {[%clk 0:01:24]}  cxd4 {[%clk 0:01:25]} 17. gxf5 {[%clk 0:01:22]}  Nc6 {[%clk 0:01:22]} 18. Qh5 {[%clk 0:01:19]}  Qd7 {[%clk 0:01:11]} 19. e6 {[%clk 0:01:10]}  Qe7 {[%clk 0:01:10]} 20. f6 {[%clk 0:00:36]}  gxf6 {[%clk 0:01:09]} 21. Bxh7+ {[%clk 0:00:36]}  Qxh7 {[%clk 0:00:39]} 22. Qxe8+ {[%clk 0:00:34]}  Kg7 {[%clk 0:00:40]} 23. Rf3 {[%clk 0:00:32]}  Qg6+ {[%clk 0:00:28]} 24. Rg3 {[%clk 0:00:31]}  Qxg3+ {[%clk 0:00:26]} 25. hxg3 {[%clk 0:00:32]}  Bd7 {[%clk 0:00:20]} 26. exd7 {[%clk 0:00:27]}  Rd8 {[%clk 0:00:14]} 27. f5 {[%clk 0:00:22]}  Rxd7 {[%clk 0:00:13]} 28. Bh6+ {[%clk 0:00:22]}  Kxh6 {[%clk 0:00:12]} 29. Qg6# {[%clk 0:00:22]} 1-0


[Site "https://www.chess.com"]